bitfinex-derivatives/quotes_SOLF0:USTF0_20220110
["timestamp","ask_amount","ask_price","bid_price","bid_amount"]
[1641830839493,72.7127,133.72,133.62,7.48083037]
[1641830839694,4.0,133.74,133.6,1.87]
[1641830839894,27.66479,133.69,133.6,27.66479]
[1641830840194,4.0,133.72,133.61,7.4811102]
[1641830840395,74.0635,133.74,133.61,7.4811102]
[1641830840596,70.0635,133.74,133.66,7.47831289]
[1641830840797,70.0635,133.74,133.67,1.869]
[1641830840996,70.0635,133.74,133.65,7.47915186]
[1641830841797,70.0635,133.74,133.66,27.66479]
[1641830843798,70.0635,133.74,133.66,55.32958]
[1641830844999,70.0635,133.74,133.67,7.47775368]
[1641830845299,7.47775368,133.82,133.67,9.34675368]
[1641830845500,74.8948,133.81,133.71,7.47579711]
[1641830845700,74.94561502,133.84,133.69,9.34391502]
[1641830845899,68.0682,133.8,133.74,27.66479]
[1641830846100,4.0,133.79,133.74,27.66479]
[1641830846300,4.23415561,133.73,133.66,9.34631289]
[1641830846501,4.23415561,133.73,133.66,7.47831289]
[1641830847902,4.23415561,133.73,133.66,35.14310289]
[1641830848505,8.23415561,133.73,133.66,27.66479]
[1641830848706,4.0,133.72,133.62,9.34955057]
[1641830848904,4.0,133.72,133.62,7.48055057]
[1641830849105,4.0,133.72,133.58,1.87]
[1641830849305,68.2809,133.71,133.68,3.23272718]
[1641830849504,4.0,133.72,133.68,3.23272718]
[1641830850505,4.0,133.71,133.68,3.23272718]
[1641830850708,4.0,133.71,133.64,27.66479]
[1641830850906,4.0,133.7,133.64,27.66479]
[1641830851106,4.0,133.68,133.56,1.87]
[1641830851306,4.0,133.65,133.53,1.87]
[1641830851506,4.0,133.65,133.52,11.48615062]
[1641830851707,4.0,133.62,133.52,7.48615062]
[1641830851910,4.0,133.62,133.53,27.66479]
[1641830852108,31.66479,133.64,133.53,27.66479]
[1641830852309,4.0,133.65,133.54,7.48531008]
[1641830852508,31.66479,133.66,133.54,7.48531008]
[1641830852710,69.1686,133.68,133.54,7.48531008]
[1641830852908,69.1686,133.68,133.57,7.48334955]
[1641830853310,4.0,133.66,133.57,7.48334955]
[1641830853511,69.1686,133.68,133.57,7.48334955]
[1641830853710,4.0,133.65,133.57,7.48334955]
[1641830853912,101.15919,133.67,133.53,35.15038024]
[1641830854112,4.0,133.62,133.53,35.15038024]
[1641830854311,4.0,133.62,133.53,27.66479]
[1641830855311,4.0,133.59,133.53,27.66479]
[1641830855512,4.0,133.6,133.51,7.48699135]
[1641830855714,4.0,133.55,133.47,1.871]
[1641830856014,27.66479,133.56,133.53,3.20424647]
[1641830856413,31.66479,133.56,133.53,3.20424647]
[1641830857113,27.66479,133.56,133.53,3.20424647]
[1641830857315,4.0,133.55,133.53,3.20424647]
[1641830857515,4.0,133.54,133.48,27.66479]
[1641830857715,27.66479,133.56,133.48,27.66479]
[1641830857915,4.0,133.49,133.46,27.66479]
[1641830858115,4.0,133.49,133.37,29.97264996]
[1641830858315,4.0,133.46,133.37,29.97264996]
[1641830858518,4.0,133.43,133.34,7.49625187]
[1641830858718,4.0,133.43,133.32,7.49765698]
[1641830859015,7.49765698,133.47,133.32,7.49765698]
[1641830859417,4.0,133.48,133.35,7.49568998]
[1641830859616,4.0,133.46,133.35,7.49568998]
[1641830859817,4.0,133.46,133.33,7.49681385]
[1641830860016,27.66479,133.43,133.34,27.66479]
[1641830860217,27.66479,133.45,133.34,27.66479]
[1641830860417,27.66479,133.45,133.35,4.0]
[1641830860616,145.1708,133.51,133.35,4.0]
[1641830860617,145.1708,133.51,133.38,7.4940048]
[1641830861317,4.0,133.5,133.38,7.4940048]
[1641830861517,4.0,133.49,133.36,9.36840906]
[1641830861717,4.0,133.5,133.36,7.49540906]
[1641830861917,27.66479,133.47,133.4,27.66479]
[1641830862719,27.66479,133.5,133.4,27.66479]
[1641830862920,145.1708,133.51,133.4,27.66479]
[1641830863919,99.25689,133.52,133.43,27.66479]
[1641830864320,99.25689,133.52,133.45,7.49007565]
[1641830864519,27.66479,133.52,133.45,7.49007565]
[1641830864718,51.70653398,133.55,133.44,7.49091726]
[1641830865220,4.24051721,133.5,133.43,27.66479]
[1641830866022,4.24051721,133.5,133.43,55.32958]
[1641830866421,23.33588262,133.46,133.43,55.32958]
[1641830866622,5.0,133.46,133.45,7.49035617]
[1641830866821,4.24051721,133.5,133.45,7.49035617]
[1641830867624,4.24051721,133.5,133.48,7.48839299]
[1641830867826,27.66479,133.55,133.49,11.48699135]
[1641830868023,27.66479,133.62,133.5,4.0]
[1641830868223,27.66479,133.62,133.5,5.872]
[1641830868427,95.27089,133.64,133.52,4.0]
[1641830868725,67.6061,133.64,133.5,1.872]
[1641830868923,67.6061,133.64,133.55,4.0]
[1641830869124,67.6061,133.64,133.54,4.0]
[1641830869624,44.95362956,133.72,133.57,7.48362956]
[1641830869827,68.5433,133.71,133.57,7.48362956]
[1641830870029,27.66479,133.69,133.59,27.66479]
[1641830870227,27.66479,133.71,133.61,11.48139004]
[1641830870431,27.66479,133.71,133.61,7.48139004]
[1641830871827,27.66479,133.71,133.59,29.53479]
[1641830872029,7.48502994,133.69,133.59,27.66479]
[1641830872331,4.0,133.68,133.57,27.66479]
[1641830872529,4.0,133.67,133.57,27.66479]
[1641830872728,4.0,133.65,133.57,27.66479]
[1641830872932,4.0,133.64,133.51,9.35671109]
[1641830873131,4.0,133.65,133.51,7.48671109]
[1641830873529,4.0,133.64,133.51,7.48671109]
[1641830873731,73.2319,133.65,133.51,7.48671109]
[1641830873932,27.66479,133.61,133.52,27.66479]
[1641830874931,68.9824,133.64,133.54,7.48502994]
[1641830875230,69.2319,133.65,133.52,27.66479]
[1641830875231,69.2319,133.65,133.55,7.48474982]
[1641830876032,69.2319,133.65,133.59,27.66479]
[1641830876233,4.0,133.6,133.54,1.87]
[1641830876434,4.0,133.62,133.47,1.87]
[1641830876632,67.8293,133.64,133.5,7.48755194]
[1641830877033,67.8293,133.64,133.52,4.23725203]
[1641830877233,4.0,133.63,133.52,4.23725203]
[1641830877436,67.8293,133.64,133.52,4.23725203]
[1641830878034,95.49409,133.64,133.54,27.66479]
[1641830880138,95.49409,133.64,133.54,35.14981994]
[1641830880540,95.49409,133.64,133.54,27.66479]
[1641830880939,4.0,133.62,133.51,4.2371873]
[1641830881138,11.48951468,133.61,133.51,4.2371873]
[1641830881341,4.0,133.58,133.51,4.2371873]
[1641830881541,4.0,133.57,133.51,4.2371873]
[1641830881938,27.66479,133.55,133.51,4.2371873]
[1641830882539,4.0,133.53,133.51,8.73e-05]
[1641830882838,4.0,133.54,133.48,25.42532571]
[1641830883040,4.0,133.53,133.48,12.38481301]
[1641830883238,4.0,133.52,133.48,12.38481301]
[1641830883438,4.0,133.5,133.4,7.49316249]
[1641830884041,27.66479,133.47,133.4,27.66479]
[1641830884940,4.0,133.45,133.4,27.66479]
[1641830885339,27.66479,133.47,133.4,27.66479]
[1641830886141,27.66479,133.47,133.41,11.49260106]
[1641830886341,4.0,133.55,133.41,7.49260106]
[1641830886543,4.0,133.53,133.4,35.15767176]
[1641830886942,114.32524324,133.54,133.4,35.15767176]
[1641830887142,4.0,133.52,133.4,35.15767176]
[1641830887344,19.49484729,133.52,133.4,27.66479]
[1641830887546,4.0,133.49,133.38,27.66479]
[1641830887943,4.0,133.5,133.38,27.66479]
[1641830888143,27.66479,133.48,133.38,27.66479]
[1641830888746,8.0,133.52,133.38,27.66479]
[1641830888945,71.9688,133.53,133.43,7.49147844]
[1641830889148,4.24082615,133.44,133.43,7.49147844]
[1641830889344,71.9688,133.53,133.43,7.49147844]
[1641830890146,71.9688,133.53,133.44,27.66479]
[1641830890346,71.9688,133.53,133.4,7.49288176]
[1641830890545,4.0,133.51,133.38,27.66479]
[1641830890946,4.0,133.5,133.38,27.66479]
[1641830891247,15.49456644,133.52,133.38,27.66479]
[1641830891450,7.49456644,133.52,133.38,27.66479]
[1641830891650,71.9688,133.53,133.41,7.49232037]
[1641830892049,71.9688,133.53,133.43,27.66479]
[1641830892050,27.66479,133.52,133.43,27.66479]
[1641830893452,31.66479,133.52,133.38,35.1587948]
[1641830893650,57.33677691,133.52,133.38,35.1587948]
[1641830893851,4.0,133.5,133.38,35.1587948]
[1641830894052,27.66479,133.44,133.38,35.1587948]
[1641830895154,27.66479,133.44,133.38,27.66479]
[1641830896455,29.67198691,133.52,133.38,27.66479]
[1641830896656,71.5636,133.5,133.38,35.1587948]
[1641830897457,4.0,133.49,133.38,35.1587948]
[1641830897857,8.24092308,133.49,133.38,35.1587948]
[1641830898158,35.90571308,133.49,133.38,35.1587948]
[1641830899156,4.0,133.48,133.38,27.66479]
[1641830899758,7.49906262,133.44,133.34,27.66479]
[1641830899958,7.49906262,133.44,133.29,75.06566262]
[1641830900157,31.66479,133.41,133.3,27.66479]
[1641830900359,27.66479,133.41,133.39,2.34113414]
[1641830900656,27.66479,133.41,133.3,27.66479]
[1641830900858,99.24949,133.43,133.3,27.66479]
[1641830901157,99.24949,133.43,133.35,7.49568998]
[1641830901658,27.66479,133.43,133.35,7.49568998]
[1641830901857,71.1827,133.46,133.35,7.49568998]
[1641830902057,71.1827,133.46,133.35,11.49568998]
[1641830902259,27.66479,133.43,133.35,7.49568998]
[1641830902458,27.66479,133.43,133.33,1.874]
[1641830902756,27.66479,133.43,133.34,7.49653285]
[1641830903157,27.66479,133.45,133.34,7.49653285]
[1641830903357,27.66479,133.45,133.35,1.874]
[1641830903557,102.6819618,133.49,133.34,11.49653285]
[1641830903757,67.552,133.48,133.35,4.0]
[1641830904157,4.0,133.45,133.33,1.874]
[1641830904358,4.0,133.44,133.33,1.874]
[1641830904557,125.2107912,133.48,133.28,79.21602502]
[1641830904558,11.49962502,133.43,133.28,79.21602502]
[1641830904759,11.49962502,133.43,133.28,7.49962502]
[1641830904958,19.49962502,133.43,133.28,7.49962502]
[1641830905361,70.4363,133.42,133.28,7.49962502]
[1641830905560,70.4363,133.42,133.36,1.85069889]
[1641830906165,98.10109,133.42,133.36,1.85069889]
[1641830906364,31.90664527,133.42,133.36,1.85069889]
[1641830909566,31.90664527,133.42,133.33,39.16160385]
[1641830909765,31.90664527,133.42,133.33,35.16160385]
[1641830909968,31.90664527,133.42,133.37,2.3422678]
[1641830910787,27.66479,133.42,133.37,2.3422678]
[1641830910793,8.24272404,133.41,133.37,2.3422678]
[1641830910970,8.24272404,133.41,133.28,9.37390625]
[1641830911169,8.24272404,133.41,133.28,7.49990625]
[1641830911370,4.0,133.4,133.28,7.49990625]
[1641830911572,8.24272404,133.41,133.28,7.49990625]
[1641830911969,4.24272404,133.41,133.28,11.49990625]
[1641830912170,4.24272404,133.41,133.31,27.66479]
[1641830912572,4.24272404,133.41,133.31,35.16272807]
[1641830912970,69.657,133.49,133.31,57.6497975]
[1641830913173,139.2515,133.54,133.41,7.49260106]
[1641830914171,143.2515,133.54,133.41,7.49260106]
[1641830914372,27.66479,133.53,133.43,27.66479]
[1641830915571,4.0,133.52,133.43,27.66479]
[1641830915775,4.0,133.51,133.38,9.34414116]
[1641830916171,4.0,133.5,133.38,9.34414116]
[1641830916371,27.66479,133.46,133.38,9.34414116]
[1641830917973,27.66479,133.46,133.36,27.66479]
[1641830918374,27.66479,133.46,133.42,1.84821593]
[1641830918773,4.0,133.44,133.34,29.53779]
[1641830919073,4.0,133.44,133.34,27.66479]
[1641830919376,4.0,133.41,133.29,70.4096]
[1641830919573,4.0,133.4,133.27,7.5001875]
[1641830919972,4.0,133.39,133.27,7.5001875]
[1641830920175,4.0,133.38,133.27,7.5001875]
[1641830920377,31.66479,133.38,133.27,35.1649775]
[1641830921073,4.0,133.37,133.27,35.1649775]
[1641830921273,31.66479,133.38,133.27,35.1649775]
[1641830921474,4.0,133.37,133.27,27.66479]
[1641830921776,7.50356419,133.36,133.21,101.57350187]
[1641830921974,4.0,133.33,133.21,30.00750187]
[1641830922378,27.66479,133.31,133.21,57.67229187]
[1641830922779,27.66479,133.33,133.21,27.66479]
[1641830922977,70.5065,133.35,133.25,7.50131273]
[1641830923275,70.5065,133.35,133.23,7.50271974]
[1641830923475,70.5065,133.35,133.3,1.88088035]
[1641830923675,144.255,133.36,133.3,1.88088035]
[1641830923875,4.0,133.34,133.3,1.88088035]
[1641830924075,144.255,133.36,133.22,7.50328269]
[1641830924275,27.66479,133.29,133.22,7.50328269]
[1641830925279,27.66479,133.29,133.21,27.66479]
[1641830925478,27.66479,133.29,133.19,27.66479]
[1641830926278,4.0,133.28,133.19,27.66479]
[1641830926478,27.66479,133.27,133.18,7.50553533]
[1641830926677,4.0,133.26,133.13,30.02664865]
[1641830927078,4.0,133.25,133.13,30.02664865]
[1641830927377,12.0,133.25,133.13,30.02664865]
[1641830927578,4.0,133.24,133.13,30.02664865]
[1641830927779,72.6364,133.26,133.13,30.02664865]
[1641830927979,72.6364,133.26,133.16,7.50638042]
[1641830928380,72.6364,133.26,133.18,27.66479]
[1641830928982,72.6364,133.26,133.16,35.17117042]
[1641830929183,72.6364,133.26,133.23,1.46943897]
[1641830929381,104.11799,133.27,133.16,35.17117042]
[1641830929581,100.11799,133.27,133.16,35.17117042]
[1641830929783,27.66479,133.27,133.17,4.0]
[1641830929984,75.39648264,133.28,133.21,7.50356419]
[1641830930184,4.24568264,133.28,133.19,4.0]
[1641830930385,4.24568264,133.28,133.17,1.875]
[1641830930386,4.24568264,133.28,133.21,35.16835419]
[1641830931687,4.24568264,133.28,133.21,39.16835419]
[1641830931886,4.24568264,133.28,133.21,35.16835419]
[1641830932890,4.24568264,133.28,133.17,9.38081701]
[1641830933091,4.24568264,133.28,133.17,7.50581701]
[1641830933492,4.24568264,133.28,133.16,35.17145216]
[1641830933690,4.24568264,133.28,133.17,1.47102124]
[1641830934191,4.0,133.29,133.17,1.47102124]
[1641830934389,27.66479,133.25,133.17,1.47102124]
[1641830936694,4.24565536,133.27,133.17,1.47102124]
[1641830936894,4.24565536,133.27,133.17,3.34602124]
[1641830937094,4.24565536,133.27,133.2,7.50440884]
[1641830937293,4.24565536,133.27,133.17,33.3636566]
[1641830937294,4.24565536,133.27,133.18,7.50553533]
[1641830937694,4.24565536,133.27,133.18,8.66770251]
[1641830938296,4.24669654,133.24,133.18,8.66770251]
[1641830941598,4.24669654,133.24,133.19,1.16159432]
[1641830942198,27.66479,133.25,133.19,1.16159432]
[1641830942398,68.1172,133.28,133.19,1.16159432]
[1641830942599,68.1172,133.28,133.22,7.50328269]
[1641830943401,4.24638901,133.23,133.19,28.82638432]
[1641830943599,4.0,133.38,133.22,7.50187547]
[1641830943800,67.0957,133.37,133.24,4.0]
[1641830944002,67.0957,133.37,133.29,7.49934381]
[1641830944200,67.0957,133.37,133.26,7.50075008]
[1641830944601,27.66479,133.36,133.26,7.50075008]
[1641830945001,31.66479,133.36,133.23,27.66479]
[1641830945201,4.0,133.35,133.23,27.66479]
[1641830945403,31.66479,133.36,133.23,27.66479]
[1641830945602,4.0,133.34,133.23,27.66479]
[1641830946303,69.2707,133.35,133.23,27.66479]
[1641830946506,27.66479,133.34,133.23,27.66479]
[1641830946706,27.66479,133.34,133.23,35.16750974]
[1641830947204,67.0957,133.37,133.27,7.5001875]
[1641830947405,67.0957,133.37,133.26,7.50075008]
[1641830947605,67.0957,133.37,133.26,13.37575008]
[1641830947908,67.0957,133.37,133.26,9.37575008]
[1641830948106,67.0957,133.37,133.26,7.50075008]
[1641830948608,4.24436541,133.36,133.29,27.66479]
[1641830949005,25.46967311,133.35,133.29,27.66479]
[1641830949906,25.46967311,133.35,133.27,27.66479]
[1641830950608,53.13446311,133.35,133.26,7.50075008]
[1641830951006,25.46967311,133.35,133.26,7.50075008]
[1641830952612,53.13446311,133.35,133.26,7.50075008]
[1641830953207,27.66479,133.35,133.26,7.50075008]
[1641830953910,4.0,133.34,133.23,27.66479]
[1641830954111,4.0,133.33,133.28,2.05132598]
[1641830954509,27.66479,133.3,133.28,2.598e-05]
[1641830955310,97.58619,133.35,133.28,2.598e-05]
[1641830956811,4.2444908,133.34,133.28,2.598e-05]
[1641830957813,27.07654417,133.34,133.28,2.598e-05]
[1641830958012,27.07654417,133.34,133.27,7.5001875]
[1641830958212,27.07654417,133.34,133.26,27.66479]
[1641830958413,27.07654417,133.34,133.26,35.16582139]
[1641830958814,27.07654417,133.34,133.24,9.37687547]
[1641830959019,27.07654417,133.34,133.23,27.66479]
[1641830959414,27.07654417,133.34,133.25,1.62120809]
[1641830959415,4.0,133.32,133.25,1.62120809]
[1641830959614,4.0,133.31,133.25,1.62120809]
[1641830960013,8.0,133.33,133.25,1.62120809]
[1641830960214,27.07654417,133.34,133.25,1.62120809]
[1641830960615,54.74133417,133.34,133.25,1.62120809]
[1641830961016,22.83205337,133.34,133.27,11.50046878]
[1641830961216,27.07612013,133.34,133.27,11.50046878]
[1641830961416,27.07612013,133.34,133.29,7.49906262]
[1641830962018,4.24406676,133.34,133.29,7.49906262]
[1641830962519,4.24406676,133.34,133.32,27.66479]
[1641830963821,4.24406676,133.34,133.3,27.66479]
[1641830964022,4.24406676,133.34,133.26,1.62237123]
[1641830964525,27.66479,133.33,133.26,1.62237123]
[1641830965121,68.6037,133.41,133.26,1.62237123]
[1641830965322,68.6037,133.41,133.3,7.49878145]
[1641830965523,4.24390848,133.33,133.3,7.49878145]
[1641830966624,4.24390848,133.33,133.31,27.66479]
[1641830967024,4.24390848,133.33,133.29,27.66479]
[1641830969428,27.66479,133.38,133.29,27.66479]
[1641830970629,27.66479,133.38,133.27,9.12168891]
[1641830971831,27.66479,133.38,133.27,7.50046878]
[1641830972030,4.24441769,133.32,133.3,9.11985569]
[1641830972431,1.769e-05,133.32,133.3,9.11985569]
[1641830972630,1.769e-05,133.32,133.31,27.66479]
[1641830974333,1.769e-05,133.32,133.3,36.78464569]
[1641830975035,1.769e-05,133.32,133.3,1.62107424]
[1641830975841,4.0,133.39,133.28,7.49962502]
[1641830976737,27.66479,133.36,133.28,7.49962502]
[1641830977438,4.24319117,133.39,133.31,2.51127427]
[1641830977837,4.24319117,133.39,133.33,7.49709488]
[1641830978038,4.24319117,133.39,133.31,2.51127427]
[1641830979137,29.32899137,133.39,133.31,2.51127427]
[1641830979741,29.32899137,133.39,133.31,10.00949344]
[1641830979939,29.32899137,133.39,133.31,14.00949344]
[1641830980141,29.32899137,133.39,133.34,7.49653285]
[1641830980642,29.32899137,133.39,133.35,27.66479]
[1641830981043,27.66479,133.44,133.37,7.49456644]
[1641830981941,27.66479,133.44,133.36,1.874]
[1641830982141,27.66479,133.44,133.35,27.66479]
[1641830982647,4.0,133.43,133.35,27.66479]
[1641830982842,31.66479,133.44,133.35,27.66479]
[1641830983043,4.0,133.43,133.35,27.66479]
[1641830983243,4.0,133.42,133.35,27.66479]
[1641830983543,4.0,133.43,133.35,27.66479]
[1641830983944,27.66479,133.44,133.35,27.66479]
[1641830985144,27.66479,133.44,133.36,4.0]
[1641830985344,27.66479,133.44,133.38,4.24189971]
[1641830986145,27.66479,133.44,133.38,8.24189971]
[1641830986345,27.66479,133.44,133.38,4.24189971]
[1641830986546,27.66479,133.44,133.39,1.873]
[1641830987247,71.9354,133.47,133.39,5.873]
[1641830987448,11.49260106,133.56,133.41,7.49260106]
[1641830987646,137.0604,133.55,133.42,1.872]
[1641830987847,137.0604,133.55,133.44,11.49091726]
[1641830988047,137.0604,133.55,133.45,4.0]
[1641830988246,73.3959,133.58,133.41,29.96366905]
[1641830988247,73.3959,133.58,133.49,7.48783227]
[1641830988948,73.3959,133.58,133.52,27.66479]
[1641830989149,4.0,133.59,133.5,27.66479]
[1641830989349,4.0,133.57,133.5,27.66479]
[1641830989548,4.0,133.55,133.42,7.49175907]
[1641830989748,72.0861,133.54,133.39,73.44625375]
[1641830989950,72.0861,133.54,133.41,7.49232037]
[1641830990150,4.0,133.53,133.41,7.49232037]
[1641830990348,68.0861,133.54,133.41,7.49232037]
[1641830990349,72.0861,133.54,133.41,7.49232037]
[1641830990749,27.66479,133.53,133.43,27.66479]
[1641830993051,27.66479,133.53,133.46,7.48951468]
[1641830993851,159.25615388,133.54,133.46,7.48951468]
[1641830994551,159.25615388,133.54,133.46,11.48951468]
[1641830994750,159.25615388,133.54,133.51,27.66479]
[1641830994952,20.40595388,133.54,133.51,27.66479]
[1641830996151,27.66479,133.59,133.51,27.66479]
[1641830996352,31.66479,133.59,133.51,27.66479]
[1641830996551,0.84811972,133.52,133.51,27.66479]
[1641830996952,27.66479,133.59,133.51,27.66479]
[1641830997653,143.5566,133.6,133.52,4.0]
[1641830997852,143.5566,133.6,133.51,29.53579]
[1641830998052,143.5566,133.6,133.52,4.0]
[1641830998253,4.0,133.67,133.54,7.48531008]
[1641830998456,73.1369,133.66,133.55,1.871]
[1641830998655,4.0,133.65,133.55,1.871]
[1641830998855,4.0,133.65,133.59,27.66479]
[1641830999054,4.0,133.65,133.57,27.66479]
[1641830999255,73.1369,133.66,133.51,101.88074031]
[1641830999256,4.0,133.62,133.52,1.871]
[1641830999554,4.0,133.62,133.51,9.35771109]
[1641830999754,80.62361109,133.66,133.51,9.35771109]
[1641830999755,4.0,133.64,133.51,7.48671109]
[1641831000157,4.0,133.64,133.51,11.48671109]
[1641831000359,4.0,133.63,133.51,7.48671109]
[1641831000558,11.48839299,133.63,133.48,9.35939299]
[1641831000758,0.84772753,133.58,133.48,35.15318299]
[1641831001158,4.84772753,133.58,133.48,27.66479]
[1641831001358,0.84772753,133.58,133.48,27.66479]
[1641831001559,4.0,133.57,133.48,27.66479]
[1641831001761,4.0,133.57,133.47,4.23969015]
[1641831002159,4.0,133.56,133.47,4.23969015]
[1641831002361,4.0,133.55,133.46,27.66479]
[1641831002559,4.0,133.54,133.53,4.23747101]
[1641831002761,31.66479,133.54,133.45,7.49007565]
[1641831002961,4.0,133.53,133.45,7.49007565]
[1641831003162,4.0,133.5,133.4,1.872]
[1641831003360,4.0,133.49,133.38,9.3660048]
[1641831003561,4.0,133.48,133.38,7.4940048]
[1641831003861,4.0,133.47,133.38,7.4940048]
[1641831004059,4.0,133.46,133.38,7.4940048]
[1641831004260,4.0,133.49,133.38,7.4940048]
[1641831004660,4.0,133.47,133.38,7.4940048]
[1641831004862,31.66479,133.47,133.39,27.66479]
[1641831005966,31.66479,133.49,133.39,27.66479]
[1641831006165,4.0,133.5,133.41,7.49232037]
[1641831006365,71.9416,133.51,133.41,7.49232037]
[1641831006966,71.9416,133.51,133.43,27.66479]
[1641831008069,67.9416,133.51,133.43,27.66479]
[1641831009172,0.84830909,133.46,133.43,27.66479]
[1641831009974,0.84830909,133.46,133.44,7.49091726]
[1641831010175,67.9416,133.51,133.44,7.49091726]
[1641831010978,99.16509,133.57,133.49,27.66479]
[1641831011379,103.16509,133.57,133.49,27.66479]
[1641831012278,103.16509,133.57,133.47,7.48923423]
[1641831012481,4.0,133.54,133.47,7.48923423]
[1641831012681,4.0,133.54,133.44,11.73118548]
[1641831012980,4.0,133.52,133.44,4.24054878]
[1641831013381,4.0,133.53,133.44,4.24054878]
[1641831013581,27.66479,133.54,133.44,4.24054878]
[1641831014583,4.0,133.56,133.44,4.24054878]
[1641831014784,99.16509,133.57,133.46,7.48979515]
[1641831014983,99.16509,133.57,133.49,27.66479]
[1641831015184,71.5003,133.57,133.49,27.66479]
[1641831015385,0.84791878,133.56,133.49,27.66479]
[1641831016386,0.84791878,133.56,133.5,4.23989168]
[1641831016984,4.84791878,133.56,133.5,4.23989168]
[1641831017190,0.84791878,133.56,133.5,4.23989168]
[1641831017385,4.84791878,133.56,133.5,4.23989168]
[1641831018788,0.84791878,133.56,133.5,4.23989168]
[1641831019186,4.84791878,133.56,133.5,4.23989168]
[1641831019385,4.0,133.56,133.5,4.23989168]
[1641831019586,0.8478562,133.55,133.5,4.23989168]
[1641831020286,0.8478562,133.55,133.48,27.66479]
[1641831020886,0.8478562,133.55,133.51,4.23955715]
[1641831021089,0.8478562,133.55,133.51,31.90434715]
[1641831022988,141.341,133.59,133.51,27.66479]
[1641831023190,0.84786728,133.54,133.52,4.2393364]
[1641831026092,145.341,133.59,133.48,35.15346338]
[1641831026290,141.341,133.59,133.48,35.15346338]
[1641831026489,141.341,133.59,133.53,4.23877506]
[1641831026690,4.0,133.54,133.42,7.49175907]
[1641831026990,4.0,133.52,133.43,27.66479]
[1641831027189,31.66479,133.53,133.43,27.66479]
[1641831028095,73.4841,133.54,133.43,27.66479]
[1641831028390,73.4841,133.54,133.44,4.0]
[1641831028592,73.4841,133.54,133.45,4.0]
[1641831028792,70.3053,133.56,133.46,1.872]
[1641831028992,7.49175907,133.57,133.5,27.66479]
[1641831029291,99.30499,133.58,133.5,35.15234194]
[1641831029693,4.0,133.55,133.46,1.872]
[1641831029891,4.0,133.55,133.45,7.49007565]
[1641831030092,4.0,133.53,133.45,7.49007565]
[1641831030291,4.0,133.55,133.45,7.49007565]
[1641831030693,4.0,133.52,133.45,7.49007565]
[1641831031596,103.30499,133.58,133.44,4.24057228]
[1641831031797,73.3411,133.59,133.5,7.48755194]
[1641831031997,73.6115,133.63,133.45,1.872]
[1641831032295,69.8295,133.67,133.53,7.48559024]
[1641831032494,69.8295,133.67,133.54,1.871]
[1641831032695,73.8295,133.67,133.54,1.871]
[1641831033096,97.49429,133.67,133.56,27.66479]
[1641831033298,101.49429,133.67,133.56,27.66479]
[1641831033498,97.49429,133.67,133.57,7.48334955]
[1641831033699,69.8295,133.67,133.57,7.48334955]
[1641831033900,69.8295,133.67,133.59,7.4822297]
[1641831034900,69.8295,133.67,133.59,11.4822297]
[1641831035099,69.8295,133.67,133.65,27.66479]
[1641831035299,11.4822297,133.74,133.65,27.66479]
[1641831035500,4.0,133.73,133.65,27.66479]
[1641831035700,11.4822297,133.74,133.65,27.66479]
[1641831035901,31.66479,133.75,133.65,27.66479]
[1641831036099,27.66479,133.75,133.65,27.66479]
[1641831037102,27.66479,133.75,133.69,27.66479]
[1641831038604,27.66479,133.75,133.7,7.47635602]
[1641831038804,27.66479,133.75,133.66,1.869]
[1641831040103,27.66479,133.75,133.65,35.14394186]
[1641831042107,31.66479,133.75,133.65,35.14394186]
[1641831042310,4.0,133.74,133.65,35.14394186]
[1641831042508,4.0,133.73,133.65,35.14394186]
[1641831042709,4.0,133.74,133.65,35.14394186]
[1641831043210,4.84691458,133.74,133.65,35.14394186]
[1641831043609,4.0,133.71,133.63,7.48027079]
[1641831043810,4.0,133.71,133.67,4.23425021]